bitfinex/quotes_BTCUSD_20241124
["timestamp","ask_amount","ask_price","bid_price","bid_amount"]
[1732475567428,1.36525394,96106.0,96105.0,27.31107101]
[1732475567659,0.96575794,96106.0,96105.0,27.36027101]
[1732475567884,0.76575794,96106.0,96105.0,27.36027101]
[1732475568944,0.91575794,96106.0,96105.0,27.36027101]
[1732475573100,0.85800756,96106.0,96105.0,27.36027101]
[1732475574603,0.84717516,96106.0,96105.0,27.36027101]
[1732475579836,1.07017516,96106.0,96105.0,27.36027101]
[1732475580745,1.12792554,96106.0,96105.0,27.36027101]
[1732475580953,1.12792554,96106.0,96105.0,27.23027101]
[1732475581555,1.12992554,96106.0,96105.0,27.23027101]
[1732475581823,1.12792554,96106.0,96105.0,27.23027101]
[1732475588870,1.12992554,96106.0,96105.0,27.23027101]
[1732475589294,1.12792554,96106.0,96105.0,27.23027101]
[1732475590001,1.12792554,96106.0,96105.0,27.36057101]
[1732475590002,0.47454421,96106.0,96105.0,27.36057101]
[1732475590219,0.208051,96130.0,96105.0,27.36057101]
[1732475590220,0.2,96138.0,96121.0,0.18944962]
[1732475590458,0.041564,96131.0,96123.0,0.14224962]
[1732475590675,0.00078112,96136.0,96124.0,0.0472]
[1732475590922,0.00078112,96135.0,96124.0,0.0472]
[1732475591143,0.10480112,96135.0,96125.0,0.0778]
[1732475591371,0.01652686,96134.0,96126.0,0.0472]
[1732475591590,0.01652686,96134.0,96127.0,0.0778]
[1732475591591,0.00078112,96133.0,96127.0,0.0778]
[1732475591808,0.01641536,96132.0,96128.0,0.0472]
[1732475592026,0.01641536,96132.0,96129.0,0.125]
[1732475592284,0.0017124,96137.0,96130.0,0.0472]
[1732475592519,0.0017124,96137.0,96132.0,0.09362]
[1732475592739,0.0017124,96137.0,96131.0,0.14224962]
[1732475592740,0.0017124,96137.0,96133.0,0.093619]
[1732475592967,0.0017124,96137.0,96131.0,0.23587062]
[1732475593176,0.0017124,96137.0,96131.0,0.14224962]
[1732475593403,0.0017124,96137.0,96130.0,0.093622]
[1732475593612,0.0017124,96137.0,96132.0,0.125]
[1732475594519,0.0017124,96137.0,96134.0,0.093619]
[1732475594727,0.0017124,96137.0,96133.0,0.09362]
[1732475595402,0.0017124,96137.0,96132.0,0.21862]
[1732475595830,0.0017124,96137.0,96133.0,0.093619]
[1732475596047,0.00078112,96149.0,96134.0,0.0203]
[1732475596279,0.00217684,96136.0,96135.0,0.093618]
[1732475596508,0.00078112,96149.0,96135.0,0.187236]
[1732475596737,0.00078112,96149.0,96137.0,0.093615]
[1732475596965,0.00078112,96149.0,96130.0,0.093622]
[1732475596966,0.04139715,96155.0,96136.0,0.14224962]
[1732475597255,0.05775038,96180.0,96156.0,0.093597]
[1732475597256,0.1056954,96171.0,96156.0,0.093597]
[1732475597479,0.041397,96165.0,96156.0,0.093597]
[1732475597694,0.041397,96165.0,96155.0,0.125]
[1732475597695,0.08722365,96170.0,96155.0,0.125]
[1732475597905,0.041546,96169.0,96155.0,0.125]
[1732475598605,0.1056954,96171.0,96155.0,0.125]
[1732475598838,0.10419708,96168.0,96157.0,0.093596]
[1732475599055,0.10201427,96168.0,96160.0,0.093593]
[1732475599283,0.00218262,96167.0,96158.0,0.125]
[1732475599509,0.10201427,96166.0,96164.0,0.093589]
[1732475599962,0.00218225,96165.0,96161.0,0.093592]
[1732475600179,0.00218225,96165.0,96164.0,0.09359]
[1732475600842,0.00218225,96165.0,96161.0,0.187184]
[1732475601052,0.00218225,96165.0,96161.0,0.093592]
[1732475601487,0.00218225,96165.0,96163.0,0.09359]
[1732475601705,0.00218225,96165.0,96161.0,0.187184]
[1732475601932,0.00218225,96165.0,96161.0,0.093592]
[1732475602355,0.00389365,96165.0,96161.0,0.187184]
[1732475602573,0.00389365,96165.0,96161.0,0.093592]
[1732475602795,0.00389365,96165.0,96163.0,0.09359]
[1732475603045,0.00389365,96165.0,96164.0,0.09359]
[1732475603286,0.00389365,96165.0,96163.0,0.09359]
[1732475603952,0.0017114,96165.0,96163.0,0.09359]
[1732475604591,0.0017114,96165.0,96164.0,0.09359]
[1732475604844,0.0017114,96165.0,96163.0,0.09359]
[1732475605075,0.0017114,96165.0,96164.0,0.09462984]
[1732475605318,0.0017114,96165.0,96164.0,0.36187937]
[1732475605569,0.0017114,96165.0,96164.0,0.36083962]
[1732475610527,0.0017114,96165.0,96164.0,0.36283962]
[1732475611414,0.0017114,96165.0,96164.0,0.36083962]
[1732475611824,0.0017114,96165.0,96164.0,0.36283962]
[1732475612248,0.0017114,96165.0,96164.0,0.36083962]
[1732475614518,0.0017114,96165.0,96164.0,0.23583962]
[1732475615157,0.0017114,96165.0,96164.0,0.14224962]
[1732475615390,0.0017114,96165.0,96164.0,0.23583962]
[1732475617250,0.10372567,96165.0,96155.0,0.14224962]
[1732475617460,0.10201427,96164.0,96158.0,0.14224962]
[1732475617665,0.10399,96163.0,96158.0,0.14224962]
[1732475617882,0.20600627,96162.0,96158.0,0.14224962]
[1732475618088,0.10422793,96162.0,96158.0,0.14224962]
[1732475618947,0.10422793,96162.0,96155.0,0.14224962]
[1732475619170,0.10422793,96162.0,96149.0,0.0008554]
[1732475619171,0.10422793,96162.0,96158.0,0.14224962]
[1732475621238,0.103992,96161.0,96158.0,0.14224962]
[1732475621489,0.10422793,96162.0,96158.0,0.14224962]
[1732475621490,0.10201427,96160.0,96158.0,0.14224962]
[1732475621710,0.103994,96159.0,96158.0,0.14224962]
[1732475621969,0.103994,96159.0,96149.0,0.0008554]
[1732475621970,0.103998,96156.0,96149.0,0.0008554]
[1732475622178,0.104001,96153.0,96149.0,0.0008554]
[1732475622398,0.10201427,96152.0,96149.0,0.0008554]
[1732475622626,0.20822806,96152.0,96149.0,0.0008554]
[1732475622868,0.104004,96150.0,96149.0,0.0008554]
[1732475623097,0.10201427,96150.0,96149.0,0.0008554]
[1732475623320,0.10422569,96150.0,96149.0,0.0008554]
[1732475623770,0.20822969,96150.0,96149.0,0.0008554]
[1732475624240,0.10422569,96150.0,96149.0,0.0008554]
[1732475626037,0.10422569,96150.0,96149.0,0.14310502]
[1732475626260,0.10422569,96150.0,96149.0,0.0008554]
[1732475626481,0.10201427,96150.0,96149.0,0.14310502]
[1732475626694,0.10201427,96150.0,96149.0,0.0008554]
[1732475626920,0.10201427,96150.0,96149.0,0.14310502]
[1732475627342,0.10201427,96150.0,96149.0,0.0008554]
[1732475627557,0.10417481,96150.0,96149.0,0.14310502]
[1732475628882,0.10417481,96150.0,96149.0,0.0008554]
[1732475631204,0.28957881,96150.0,96149.0,0.0008554]
[1732475660182,0.28558237,96150.0,96149.0,0.0008554]
[1732475661739,0.10017837,96150.0,96149.0,0.0008554]
[1732475661952,0.10017837,96150.0,96149.0,0.0944594]
[1732475662433,0.09801783,96150.0,96149.0,0.0944594]
[1732475662901,0.10056043,96150.0,96149.0,0.0944594]
[1732475664731,0.0025426,96150.0,96149.0,0.0944594]
[1732475665003,0.0025426,96150.0,96149.0,0.09549934]
[1732475665205,0.08722365,96159.0,96158.0,0.093595]
[1732475665423,0.18923792,96159.0,96158.0,0.093595]
[1732475665636,0.10455905,96159.0,96158.0,0.093595]
[1732475669689,0.00254478,96159.0,96158.0,0.093595]
[1732475669928,0.00254478,96159.0,96158.0,0.21274262]
[1732475670189,0.0017114,96165.0,96164.0,0.09359]
[1732475670659,0.00426469,96165.0,96164.0,0.09359]
[1732475670904,0.0017114,96165.0,96164.0,0.37653007]
[1732475671140,0.0017114,96165.0,96164.0,0.42249028]
[1732475671353,0.0017114,96165.0,96164.0,0.28283962]
[1732475672470,0.0017114,96165.0,96164.0,0.42239231]
[1732475672683,0.0017114,96165.0,96164.0,0.28283962]
[1732475672920,0.0017114,96165.0,96164.0,0.4223968]
[1732475673101,0.0017114,96165.0,96164.0,0.28283962]
[1732475677350,0.0017114,96165.0,96164.0,0.28483962]
[1732475678532,0.0017114,96165.0,96164.0,0.35893962]
[1732475678953,0.0017114,96165.0,96164.0,0.36093962]
[1732475679394,0.0017114,96165.0,96164.0,0.35893962]
[1732475680287,0.0017114,96165.0,96164.0,0.36093962]
[1732475681555,0.0017114,96165.0,96164.0,0.35893962]
[1732475682437,0.0017114,96165.0,96164.0,0.36093962]
[1732475684258,0.0017114,96165.0,96164.0,0.35893962]
[1732475690269,0.0017114,96165.0,96164.0,0.23583962]
[1732475693193,0.0017114,96165.0,96164.0,0.09359]
[1732475693516,0.1329114,96165.0,96161.0,0.14224962]
[1732475693733,0.10201427,96164.0,96161.0,0.14224962]
[1732475694187,0.00234852,96163.0,96161.0,0.14224962]
[1732475694431,0.10201427,96162.0,96161.0,0.14224962]
[1732475694873,0.10436257,96162.0,96161.0,0.14224962]
[1732475695316,0.10436257,96162.0,96161.0,0.23584262]
[1732475695964,0.10436257,96162.0,96159.0,0.093594]
[1732475696194,0.10436257,96162.0,96161.0,0.14224962]
[1732475696410,0.1312,96161.0,96156.0,0.093597]
[1732475696616,0.23321427,96161.0,96159.0,0.093594]
[1732475696858,0.00234786,96160.0,96154.0,0.14224962]
[1732475697131,0.00234786,96160.0,96155.0,0.14224962]
[1732475697358,0.00234786,96160.0,96156.0,0.093597]
[1732475697583,0.00234786,96160.0,96159.0,0.093594]
[1732475697795,0.10436213,96160.0,96150.0,0.0008554]
[1732475698021,0.1312,96152.0,96150.0,0.0008554]
[1732475698234,0.20601727,96151.0,96150.0,0.0008554]
[1732475698482,0.10436014,96151.0,96150.0,0.0008554]
[1732475698938,0.00234587,96151.0,96150.0,0.38774801]
[1732475699144,0.00234587,96151.0,96150.0,0.51500802]
[1732475699357,0.0817,96182.0,96164.0,0.23583962]
[1732475699564,0.08712011,96180.0,96164.0,0.23583962]
[1732475700687,0.0817,96182.0,96164.0,0.23583962]
[1732475703480,0.0817,96182.0,96164.0,0.23783962]
[1732475703728,0.0817,96182.0,96164.0,0.23583962]
[1732475704882,0.0817,96182.0,96164.0,0.37493413]
[1732475705370,0.0817,96182.0,96164.0,0.23583962]
[1732475705581,0.0817,96182.0,96164.0,0.2787198]
[1732475705791,0.0817,96182.0,96164.0,0.23583962]
[1732475706426,0.0817,96182.0,96164.0,0.42129896]
[1732475707076,0.0817,96182.0,96164.0,0.42160961]
[1732475707297,0.0817,96182.0,96164.0,0.46805211]
[1732475707990,0.0495,96187.0,96164.0,0.51483962]
[1732475708206,0.001713,96188.0,96164.0,0.61685389]
[1732475709362,0.001713,96188.0,96164.0,1.0283054]
[1732475709566,0.001713,96188.0,96164.0,0.61685389]
[1732475709772,4e-07,96165.0,96164.0,0.83985389]
[1732475711093,4e-07,96165.0,96164.0,0.61685389]
[1732475714207,0.001713,96188.0,96187.0,0.38581662]
[1732475714444,0.0798,96215.0,96202.0,0.23580262]
[1732475714892,0.0798,96215.0,96202.0,0.23780262]
[1732475715599,0.0483,96220.0,96202.0,0.23780262]
[1732475715823,0.0798,96219.0,96202.0,0.23780262]
[1732475716053,0.0798,96219.0,96202.0,0.23580262]
[1732475718859,0.0798,96219.0,96202.0,0.27778044]
[1732475720297,0.0798,96219.0,96202.0,0.46309021]
[1732475720811,0.0798,96219.0,96202.0,0.27778044]
[1732475721769,0.0798,96219.0,96202.0,0.41666394]
[1732475722695,0.0798,96219.0,96202.0,0.27778044]
[1732475723153,0.0798,96219.0,96202.0,0.41666394]
[1732475723375,0.0798,96219.0,96202.0,0.27778044]
[1732475728684,0.0798,96219.0,96202.0,0.27978044]
[1732475729142,0.0798,96219.0,96202.0,0.27778044]
[1732475730281,0.0798,96219.0,96202.0,0.27978044]
[1732475730501,0.001213,96203.0,96202.0,0.27978044]
[1732475733238,0.006173,96203.0,96202.0,0.27978044]
[1732475739435,0.006173,96203.0,96202.0,0.41836884]
[1732475739758,0.006173,96203.0,96202.0,0.38179471]
[1732475740103,0.006173,96203.0,96202.0,0.53179471]
[1732475740321,0.006173,96203.0,96202.0,0.84188718]
[1732475740542,0.006173,96203.0,96202.0,0.61090651]
[1732475741874,0.006173,96203.0,96202.0,0.64735975]
[1732475743185,0.006173,96203.0,96202.0,0.61090651]
[1732475743391,0.006173,96203.0,96202.0,0.53350651]
[1732475744776,0.006173,96203.0,96202.0,0.53150651]
[1732475745446,0.006173,96203.0,96202.0,0.53350651]
[1732475748849,0.006173,96203.0,96202.0,0.81068332]
[1732475749060,0.006173,96203.0,96202.0,0.53350651]
[1732475752602,0.006173,96203.0,96202.0,0.94277539]
[1732475753893,0.006173,96203.0,96202.0,0.53350651]
[1732475756239,0.1233,96232.0,96218.0,0.14224962]
[1732475756456,0.1233,96232.0,96231.0,0.093524]
[1732475756891,0.1233,96232.0,96231.0,0.37229128]
[1732475757152,0.0781,96232.0,96231.0,0.5145409]
[1732475757351,0.0017122,96233.0,96232.0,0.23577262]
[1732475757598,0.0017122,96233.0,96232.0,0.33778689]
[1732475757801,0.0017122,96233.0,96232.0,0.71078689]
[1732475758240,0.0017122,96233.0,96232.0,0.71278689]
[1732475758531,0.0017122,96233.0,96232.0,0.71078689]
[1732475758729,0.0017122,96233.0,96232.0,0.71278689]
[1732475758964,0.0017122,96233.0,96232.0,0.75576335]
[1732475759408,0.0017122,96233.0,96232.0,0.73276335]
[1732475759617,0.0017122,96233.0,96232.0,0.76463103]
[1732475759824,0.0017122,96233.0,96232.0,0.79298395]
[1732475760255,0.0017122,96233.0,96232.0,0.73276335]
[1732475765319,0.0017122,96233.0,96232.0,0.94315824]
[1732475765517,0.0017122,96233.0,96232.0,0.73276335]
[1732475767301,0.0017122,96233.0,96232.0,0.53076335]
[1732475768468,0.0017122,96233.0,96232.0,0.093523]
[1732475768718,0.1253122,96233.0,96231.0,0.093524]
[1732475768932,0.1253122,96233.0,96232.0,0.093523]
[1732475770033,0.1253122,96233.0,96232.0,0.27891293]
[1732475770246,0.1253122,96233.0,96232.0,0.18538993]
[1732475770644,0.1253122,96233.0,96232.0,0.27891293]
[1732475771748,0.1253122,96233.0,96232.0,0.18538993]
[1732475771959,0.0478122,96233.0,96231.0,0.13906856]
[1732475772175,0.0775,96232.0,96227.0,0.13906856]
[1732475772433,0.0461,96231.0,96225.0,0.13906856]
[1732475772643,0.0461,96231.0,96220.0,0.23171293]
[1732475772644,0.0461,96231.0,96220.0,0.13906856]
[1732475772854,0.0775,96228.0,96219.0,0.13906856]
[1732475773074,0.0775,96226.0,96219.0,0.23260356]
[1732475773306,0.0775,96226.0,96219.0,0.093535]
[1732475773518,0.0775,96226.0,96218.0,0.13906856]
[1732475773770,0.0775,96226.0,96225.0,0.09353]
[1732475780785,0.0461,96235.0,96225.0,0.09353]
[1732475780786,0.000856,96247.0,96232.0,0.38577262]
[1732475781009,0.0775,96253.0,96252.0,0.093504]
[1732475781242,0.0775,96253.0,96252.0,0.0945427]
[1732475781473,0.0461,96263.0,96261.0,0.093495]
[1732475782127,0.0792114,96262.0,96261.0,0.093495]
[1732475785109,0.0792114,96262.0,96257.0,0.093499]
[1732475786231,0.0792114,96262.0,96259.0,0.093497]
[1732475786445,0.0792114,96262.0,96257.0,0.186998]
[1732475786667,0.0792114,96262.0,96256.0,0.0927549]
[1732475787105,0.0792114,96262.0,96258.0,0.093498]
[1732475787320,0.0792114,96262.0,96256.0,0.0927549]
[1732475787321,0.0792114,96262.0,96256.0,0.1862539]
[1732475787535,0.0792114,96262.0,96256.0,0.0927549]
[1732475787986,0.0792114,96262.0,96258.0,0.093498]
[1732475788213,0.0792114,96262.0,96256.0,0.1862549]
[1732475788423,0.10201427,96261.0,96256.0,0.0927549]
[1732475788656,0.103887,96258.0,96252.0,0.0927549]
[1732475788864,0.103891,96255.0,96251.0,0.0927549]
[1732475789074,0.103891,96255.0,96250.0,0.0927549]
[1732475789312,0.10201427,96257.0,96250.0,0.0927549]
[1732475789543,0.10201427,96257.0,96250.0,0.1862599]
[1732475789829,0.10201427,96257.0,96247.0,0.093508]
[1732475790041,0.10201427,96257.0,96251.0,0.093505]
[1732475791373,0.10201427,96257.0,96251.0,0.093504]
[1732475791598,0.10201427,96257.0,96252.0,0.093503]
[1732475791835,0.10201427,96257.0,96250.0,0.093506]
[1732475792050,0.10201427,96257.0,96250.0,0.18626155]
[1732475792483,0.10201427,96257.0,96250.0,0.18626867]
[1732475792706,0.10201427,96257.0,96251.0,0.09276267]
[1732475793363,0.10201427,96257.0,96251.0,0.18626767]
[1732475793821,0.10201427,96257.0,96251.0,0.093505]
[1732475795114,0.0815,96255.0,96248.0,0.13914401]
[1732475795322,0.0815,96252.0,96248.0,0.13914401]
[1732475795529,0.28740827,96252.0,96247.0,0.13914401]
[1732475795753,0.18351427,96252.0,96247.0,0.093508]
[1732475795987,0.18351427,96252.0,96247.0,0.23265201]
[1732475796230,0.18351427,96252.0,96249.0,0.093506]
[1732475796444,0.18351427,96252.0,96247.0,0.23265201]
[1732475796655,0.18351427,96252.0,96249.0,0.093507]
[1732475797975,0.18351427,96252.0,96247.0,0.093508]
[1732475798191,0.18351427,96252.0,96247.0,0.187017]
[1732475798686,0.18351427,96252.0,96247.0,0.093508]
[1732475798893,0.18351427,96252.0,96249.0,0.093507]
[1732475799130,0.18351427,96252.0,96247.0,0.093508]
[1732475799372,0.18351427,96252.0,96250.0,0.093506]
[1732475799835,0.18351427,96252.0,96248.0,0.093507]
[1732475800279,0.18351427,96252.0,96249.0,0.093507]
[1732475800497,0.18351427,96252.0,96249.0,0.093506]
[1732475800714,0.18351427,96252.0,96247.0,0.001711]
[1732475800947,0.18351427,96252.0,96250.0,0.093505]
[1732475801447,0.18351427,96252.0,96248.0,0.093508]
[1732475801674,0.18351427,96252.0,96249.0,0.093507]
[1732475801901,0.18351427,96252.0,96248.0,0.093507]
[1732475802356,0.18351427,96252.0,96249.0,0.093506]
[1732475803245,0.18351427,96252.0,96247.0,0.23436301]
[1732475803491,0.18351427,96252.0,96247.0,0.14085501]
[1732475803725,0.18351427,96252.0,96250.0,0.093505]
[1732475803973,0.0815,96252.0,96251.0,0.093505]
[1732475804430,0.1309,96252.0,96251.0,0.093505]
[1732475804873,0.1309,96252.0,96251.0,0.23264901]
[1732475805577,0.1309,96252.0,96251.0,0.093505]
[1732475805806,0.1309,96252.0,96251.0,0.23281558]
[1732475807635,0.1309,96252.0,96251.0,0.13931058]
[1732475807870,0.234196,96250.0,96249.0,0.13931058]
[1732475808106,0.234196,96250.0,96247.0,0.001711]
[1732475808107,0.10201427,96250.0,96247.0,0.001711]
[1732475808337,0.10201427,96250.0,96244.0,0.18552535]
[1732475808338,0.18805038,96241.0,96238.0,0.13931058]
[1732475808595,0.16166038,96237.0,96236.0,0.13931058]
[1732475808829,0.16166038,96237.0,96224.0,0.093531]
[1732475808830,0.05775038,96226.0,96224.0,0.093531]
[1732475809060,0.05775038,96226.0,96222.0,0.13931058]
[1732475809061,0.05775038,96236.0,96225.0,0.00103913]
[1732475809337,0.0831,96242.0,96241.0,0.093515]
[1732475809566,0.0831,96242.0,96241.0,0.23291743]
[1732475809795,0.0831,96242.0,96241.0,0.27938491]
[1732475810027,0.0831,96242.0,96241.0,0.093515]
[1732475810476,0.0831,96242.0,96241.0,0.23291729]
[1732475810711,0.0831,96242.0,96241.0,0.32590822]
[1732475810937,0.05775038,96245.0,96244.0,0.093512]
[1732475811172,0.05775038,96248.0,96244.0,0.093512]
[1732475811401,0.05775038,96245.0,96244.0,0.3258013]
[1732475812338,0.05775038,96245.0,96244.0,0.093512]
[1732475813043,0.05775038,96245.0,96244.0,0.23290721]
[1732475813278,0.29006465,96245.0,96239.0,0.001711]
[1732475813508,0.24475638,96240.0,96239.0,0.001711]
[1732475813751,0.39397065,96240.0,96239.0,0.001711]
[1732475813976,0.39397065,96240.0,96230.0,0.093525]
[1732475813977,0.10391,96237.0,96230.0,0.093525]
[1732475814211,0.10391,96237.0,96226.0,0.13939521]
[1732475814212,0.10391,96237.0,96231.0,0.093524]
[1732475814429,0.00154364,96236.0,96232.0,0.187046]
[1732475814650,0.05775038,96233.0,96232.0,0.093523]
[1732475815116,0.05929341,96233.0,96232.0,0.093523]
[1732475817456,0.05929341,96233.0,96229.0,0.093525]
[1732475817920,0.05929341,96233.0,96232.0,0.093523]
[1732475818175,0.05929341,96233.0,96231.0,0.093524]
[1732475818640,0.05929341,96233.0,96232.0,0.093523]
[1732475822969,0.05926961,96233.0,96231.0,0.093524]
[1732475823203,0.00151923,96233.0,96231.0,0.093524]
[1732475823436,0.05775038,96232.0,96231.0,0.093524]
[1732475823675,0.05926941,96232.0,96231.0,0.093524]
[1732475824366,0.05926941,96232.0,96231.0,0.09456309]
[1732475824639,0.05926941,96232.0,96231.0,0.093524]
[1732475824858,0.05775038,96232.0,96231.0,0.093524]
[1732475825085,0.05775038,96241.0,96231.0,0.23233415]
[1732475825331,0.05775038,96241.0,96229.0,0.093526]
[1732475825332,0.05775038,96241.0,96240.0,0.093516]
[1732475826000,0.05775038,96247.0,96240.0,0.093516]
[1732475826223,0.05775038,96241.0,96240.0,0.32578897]
[1732475826458,0.05775038,96249.0,96248.0,0.093508]
[1732475828021,0.05775038,96249.0,96240.0,0.13933834]
[1732475828261,0.13885038,96243.0,96240.0,0.13933834]
[1732475828519,0.05775038,96238.0,96237.0,0.13933834]
[1732475828734,0.15976465,96238.0,96235.0,0.13939785]
[1732475828949,0.05775038,96236.0,96235.0,0.13939785]
[1732475829160,0.05775038,96236.0,96235.0,0.23291885]
[1732475829388,0.05926724,96236.0,96235.0,0.23291885]
[1732475829626,0.05926724,96236.0,96235.0,0.093521]
[1732475830084,0.05775038,96236.0,96235.0,0.093521]
[1732475830314,0.05775038,96236.0,96233.0,0.23291985]
[1732475830558,0.05775038,96236.0,96234.0,0.093522]
[1732475830767,0.05775038,96236.0,96235.0,0.093521]
[1732475831201,0.05775038,96236.0,96233.0,0.23291985]
[1732475831202,0.05775038,96238.0,96237.0,0.093519]
[1732475831684,0.08712011,96247.0,96237.0,0.093519]
[1732475831685,0.05775038,96242.0,96241.0,0.093515]
[1732475831896,0.08712011,96247.0,96241.0,0.13944937]
[1732475832132,0.05775038,96245.0,96243.0,0.1394462]
[1732475832412,0.05775038,96245.0,96244.0,0.093512]
[1732475832873,0.05775038,96245.0,96244.0,0.27944449]
[1732475833502,0.05775038,96245.0,96244.0,0.27942527]
[1732475834163,0.05775038,96245.0,96244.0,0.2329627]
[1732475834426,0.05775038,96245.0,96244.0,0.093512]
[1732475835583,0.05775038,96245.0,96244.0,0.23292959]
[1732475835803,0.05775038,96245.0,96244.0,0.093512]
[1732475836963,0.05775038,96245.0,96244.0,0.27942527]
[1732475837177,0.05775038,96245.0,96244.0,0.093512]
[1732475837391,0.05775038,96245.0,96243.0,0.093512]
[1732475837602,0.05775038,96244.0,96243.0,0.093512]
[1732475837824,0.05775038,96244.0,96243.0,0.23291584]
[1732475838041,0.05775038,96244.0,96243.0,0.093512]
[1732475838679,0.05775038,96244.0,96243.0,0.23291584]
[1732475839127,0.05775038,96244.0,96243.0,0.093512]
[1732475840778,0.05775038,96244.0,96243.0,0.23294232]
[1732475841007,0.05775038,96244.0,96243.0,0.23293839]
[1732475841224,0.05775038,96244.0,96243.0,0.093512]
[1732475841452,0.05775038,96244.0,96243.0,0.09322003]
[1732475844016,0.05775038,96244.0,96243.0,0.23266221]
[1732475844241,0.0819555,96252.0,96239.0,0.093516]
[1732475844242,0.05775038,96251.0,96246.0,0.09351]
[1732475844453,0.0819555,96252.0,96251.0,0.093505]
[1732475844454,0.05860588,96252.0,96251.0,0.093505]
[1732475845592,0.05860588,96252.0,96251.0,0.27936692]
[1732475846029,0.05860588,96252.0,96251.0,0.093505]
[1732475846474,0.0600694,96252.0,96251.0,0.093505]
[1732475849220,0.0600694,96252.0,96251.0,0.32586638]
[1732475849433,0.05860588,96252.0,96251.0,0.32586638]
[1732475849919,0.05860588,96252.0,96251.0,0.093505]
[1732475850124,0.05860588,96252.0,96251.0,0.32586638]
[1732475850774,0.05860588,96252.0,96251.0,0.093505]
[1732475851002,0.05860588,96252.0,96251.0,0.32586638]
[1732475853411,0.05860588,96252.0,96251.0,0.093505]
[1732475854122,0.13360588,96252.0,96250.0,0.18577745]
[1732475854350,0.05775038,96251.0,96248.0,0.13934979]
[1732475854564,0.05775038,96251.0,96241.0,0.32512724]
[1732475854565,0.05775038,96242.0,96241.0,0.32512724]
[1732475854780,0.13275038,96239.0,96238.0,0.13934979]
[1732475854990,0.13275038,96239.0,96235.0,0.18577745]
[1732475854991,0.05775038,96237.0,96235.0,0.13934979]
[1732475855493,0.05775038,96237.0,96233.0,0.23458299]
[1732475855494,0.00145975,96236.0,96233.0,0.23458299]
[1732475855902,0.00145975,96236.0,96234.0,0.23287079]
[1732475856131,0.00145975,96236.0,96234.0,0.13934979]
[1732475856339,0.05921013,96236.0,96234.0,0.13934979]
[1732475856573,0.05921013,96236.0,96234.0,0.23287079]
[1732475856820,0.05921013,96236.0,96235.0,0.093521]
[1732475857705,0.00145975,96236.0,96235.0,0.093521]
[1732475857933,0.05921013,96236.0,96235.0,0.093521]
[1732475858165,0.05921013,96236.0,96234.0,0.23298075]
[1732475858166,0.05775038,96236.0,96234.0,0.23298075]
[1732475858392,0.05921013,96236.0,96235.0,0.13945975]
[1732475858831,0.16166338,96234.0,96233.0,0.14117095]
[1732475859039,0.16166338,96234.0,96233.0,0.0017112]
[1732475859257,0.05920805,96234.0,96233.0,0.0017112]
[1732475861949,0.26513532,96234.0,96233.0,0.0017112]
[1732475862186,0.34103532,96234.0,96233.0,0.0017112]
[1732475864903,0.38953532,96234.0,96233.0,0.0017112]
[1732475891486,0.39153532,96234.0,96233.0,0.0017112]
[1732475891721,0.39153532,96234.0,96232.0,0.0017112]
[1732475891722,0.58666438,96233.0,96232.0,0.0017112]
[1732475891958,0.96757865,96233.0,96232.0,0.0017112]
[1732475892161,1.00141743,96233.0,96232.0,0.0017112]
[1732475892589,0.29059538,96204.0,96202.0,0.0017118]
[1732475892807,0.39260965,96204.0,96202.0,0.0017118]
[1732475893036,0.39403789,96204.0,96202.0,0.0017118]
[1732475897632,0.43513735,96204.0,96202.0,0.0017118]
[1732475903328,0.22917808,96204.0,96202.0,0.0017118]
[1732475903531,0.05917862,96204.0,96203.0,0.0952638]
[1732475904343,0.05917862,96204.0,96203.0,0.09630323]
[1732475904574,0.05917862,96204.0,96203.0,0.0952638]
[1732475904821,0.05775038,96204.0,96203.0,0.0952638]
[1732475905062,0.05775038,96210.0,96209.0,0.093546]
[1732475906220,0.05775038,96210.0,96204.0,0.23291344]
[1732475906451,0.05775038,96205.0,96203.0,0.14107424]
[1732475906660,0.05775038,96205.0,96203.0,0.0017118]
[1732475906871,0.00142446,96204.0,96203.0,0.0017118]
[1732475907094,0.05775038,96204.0,96203.0,0.0952638]
[1732475907323,0.05917484,96204.0,96203.0,0.0017118]
[1732475907533,0.05917484,96204.0,96203.0,0.0952638]
[1732475908170,0.05775038,96204.0,96203.0,0.0952638]
[1732475909164,0.05917484,96204.0,96203.0,0.0952638]
[1732475909823,0.05775038,96204.0,96203.0,0.0952638]
[1732475914807,0.13905038,96204.0,96203.0,0.0017118]
[1732475915020,0.14047498,96204.0,96203.0,0.0017118]
[1732475915465,0.34643425,96204.0,96203.0,0.0017118]
[1732475916604,0.39423425,96204.0,96203.0,0.0017118]
[1732475917288,0.43702652,96204.0,96203.0,0.0017118]
[1732475917901,0.29028925,96204.0,96203.0,0.0017118]
[1732475918157,0.05917498,96204.0,96203.0,0.0952638]
[1732475919028,0.05775038,96204.0,96203.0,0.0952638]
[1732475920396,0.05917498,96204.0,96203.0,0.0952638]
[1732475923485,0.05917498,96204.0,96203.0,0.0017118]
[1732475924830,0.16311998,96204.0,96203.0,0.0017118]
[1732475925044,0.05917498,96204.0,96203.0,0.0017118]
[1732475925459,0.18367498,96204.0,96203.0,0.0017118]
[1732475925691,0.38963425,96204.0,96203.0,0.0017118]
[1732475941491,0.28568925,96204.0,96203.0,0.0017118]
[1732475941746,0.24048925,96204.0,96203.0,0.0017118]
[1732475941994,0.16118925,96204.0,96203.0,0.0952638]
[1732475942928,0.16118925,96204.0,96203.0,0.0017118]
[1732475946387,0.26513425,96204.0,96203.0,0.0017118]
[1732475946609,0.16118925,96204.0,96203.0,0.0017118]
[1732475949538,0.26513425,96204.0,96203.0,0.0017118]
[1732475950044,0.16118925,96204.0,96203.0,0.0017118]
[1732475951128,0.05917498,96204.0,96203.0,0.0952638]
[1732475951560,0.05917498,96204.0,96203.0,0.23487317]
[1732475951767,0.05775038,96204.0,96203.0,0.0952638]
[1732475952399,0.05896877,96204.0,96203.0,0.0952638]
[1732475952611,0.05775038,96204.0,96203.0,0.0952638]
[1732475952847,0.05775038,96205.0,96204.0,0.093551]
[1732475955823,0.05775038,96227.0,96226.0,0.093529]
[1732475956307,0.05775038,96227.0,96226.0,0.27970893]
[1732475956527,0.05775038,96228.0,96227.0,0.093528]
[1732475956966,0.05775038,96228.0,96227.0,0.32607892]
[1732475957173,0.05775038,96228.0,96227.0,0.093528]
[1732475957387,0.05775038,96228.0,96227.0,0.325942]
[1732475957607,0.05775038,96228.0,96227.0,0.093528]
[1732475957823,0.05775038,96228.0,96227.0,0.32594883]
[1732475958474,0.05775038,96228.0,96227.0,0.093528]
[1732475958925,0.05775038,96228.0,96227.0,0.27940477]
[1732475959140,0.05775038,96228.0,96227.0,0.093528]